fUSD/lending_fUSD_20240118
["ID","MTS","AMOUNT","RATE_DAILY","PERIOD"]
[312034692,1705566642358,-500.0,0.00021917,2]
[312034693,1705566642367,-393.5,0.00021917,2]
[312034694,1705566642377,-500.0,0.00021917,2]
[312034695,1705566642388,-500.0,0.00021917,2]
[312034696,1705566642397,-500.0,0.00021917,2]
[312034697,1705566642407,-500.0,0.00021917,2]
[312034698,1705566642416,-500.0,0.00021917,2]
[312034699,1705566642427,-503.64462733,0.00021917,2]
[312034700,1705566642436,-500.0,0.00021917,2]
[312034701,1705566642445,-500.0,0.00021917,2]
[312034702,1705566642454,-500.0,0.00021917,2]
[312034703,1705566642464,-500.0,0.00021917,2]
[312034704,1705566642474,-500.0,0.00021917,2]
[312034705,1705566642483,-500.0,0.00021917,2]
[312034706,1705566642493,-500.0,0.00021917,2]
[312034707,1705566642503,-505.07610966,0.00021917,2]
[312034708,1705566642512,-500.0,0.00021917,2]
[312034709,1705566642522,-500.0,0.00021917,2]
[312034710,1705566642531,-500.0,0.00021917,2]
[312034711,1705566642541,-500.0,0.00021917,2]
[312034712,1705566642550,-500.0,0.00021917,2]
[312034713,1705566642560,-551.32468381,0.00021917,2]
[312034714,1705566642569,-500.0,0.00021917,2]
[312034715,1705566642579,-507.96603363,0.00021917,2]
[312034716,1705566642588,-524.66994144,0.00021917,2]
[312034717,1705566642597,-500.0,0.00021917,2]
[312034718,1705566642606,-251.93547166,0.00021917,2]
[312034719,1705566642616,-316.57204053,0.00021917,2]
[312034720,1705566642625,-500.0,0.00021917,2]
[312034721,1705566642635,-500.0,0.00021917,2]
[312034722,1705566642645,-500.0,0.00021917,2]
[312034724,1705566642654,-500.0,0.00021917,2]
[312034726,1705566642664,-574.95,0.00021917,2]
[312034727,1705566642673,-500.0,0.00021917,2]
[312034728,1705566642682,-500.0,0.00021917,2]
[312034729,1705566642691,-462.08335293,0.00021917,2]
[312034730,1705566642701,-500.0,0.00021917,2]
[312034731,1705566642711,-500.0,0.00021917,2]
[312034732,1705566642720,-500.0,0.00021917,2]
[312034734,1705566642730,-500.0,0.00021917,2]
[312034735,1705566642739,-500.0,0.00021917,2]
[312034736,1705566642750,-500.0,0.00021917,2]
[312034737,1705566642759,-500.0,0.00021917,2]
[312034739,1705566642769,-504.4163024,0.00021917,2]
[312034740,1705566642778,-226.69179249,0.00021917,2]
[312034741,1705566642787,-500.0,0.00021917,2]
[312034742,1705566642797,-500.0,0.00021917,2]
[312034744,1705566642806,-500.0,0.00021917,2]
[312034746,1705566642815,-500.0,0.00021917,2]
[312034749,1705566642825,-500.0,0.00021917,2]
[312034752,1705566642834,-500.0,0.00021917,2]
[312034755,1705566642843,-500.0,0.00021917,2]
[312034758,1705566642853,-500.0,0.00021917,2]
[312034761,1705566642862,-500.0,0.00021917,2]
[312034763,1705566642871,-500.0,0.00021917,2]
[312034765,1705566642880,-521.58436441,0.00021917,2]
[312034767,1705566642889,-500.0,0.00021917,2]
[312034769,1705566642899,-500.0,0.00021917,2]
[312034771,1705566642908,-496.05279468,0.00021917,2]
[312034773,1705566642917,-500.0,0.00021917,2]
[312034775,1705566642926,-500.0,0.00021917,2]
[312034777,1705566642935,-500.0,0.00021917,2]
[312034779,1705566642945,-500.0,0.00021917,2]
[312034781,1705566642954,-500.0,0.00021917,2]
[312034783,1705566642963,-500.0,0.00021917,2]
[312034785,1705566642972,-500.0,0.00021917,2]
[312034787,1705566642981,-500.0,0.00021917,2]
[312034789,1705566642990,-500.0,0.00021917,2]
[312034791,1705566643000,-617.95168965,0.00021917,2]
[312034793,1705566643009,-500.0,0.00021917,2]
[312034795,1705566643018,-508.91434741,0.00021917,2]
[312034797,1705566643027,-500.0,0.00021917,2]
[312034799,1705566643036,-519.71909869,0.00021917,2]
[312034801,1705566643046,-500.0,0.00021917,2]
[312034803,1705566643055,-500.0,0.00021917,2]
[312034805,1705566643064,-3088.2,0.00021917,2]
[312034807,1705566643073,-502.82040996,0.00021917,2]
[312034809,1705566643083,-500.0,0.00021917,2]
[312034811,1705566643092,-500.0,0.00021917,2]
[312034813,1705566643101,-500.0,0.00021917,2]
[312034815,1705566643110,-500.0,0.00021917,2]
[312034817,1705566643120,-500.0,0.00021917,2]
[312034819,1705566643129,-500.0,0.00021917,2]
[312034821,1705566643139,-610.7,0.00021917,2]
[312034823,1705566643148,-500.0,0.00021917,2]
[312034825,1705566643156,-284.45564683,0.00021917,2]
[312034827,1705566643165,-503.60877751,0.00021917,2]
[312034829,1705566643175,-500.0,0.00021917,2]
[312034831,1705566643184,-500.0,0.00021917,2]
[312034833,1705566643193,-500.0,0.00021917,2]
[312034836,1705566643202,-500.0,0.00021917,2]
[312034838,1705566643211,-150.0,0.00021917,2]
[312034840,1705566643220,-500.0,0.00021917,2]
[312034841,1705566643229,-500.0,0.00021917,2]
[312034842,1705566643239,-312.98,0.00021917,2]
[312034843,1705566643248,-500.0,0.00021917,2]
[312034844,1705566643258,-500.0,0.00021917,2]
[312034845,1705566643267,-584.37,0.00021917,2]
[312034846,1705566643276,-562.88528666,0.00021917,2]
[312034847,1705566643286,-500.0,0.00021917,2]
[312034848,1705566643296,-254.62080938,0.00021917,2]
[312034849,1705566643307,-500.0,0.00021917,2]
[312034850,1705566643317,-500.0,0.00021917,2]
[312034851,1705566643326,-500.0,0.00021917,2]
[312034852,1705566643336,-501.20234603,0.00021917,2]
[312034853,1705566643345,-500.0,0.00021917,2]
[312034854,1705566643354,-387.60288211,0.00021917,2]
[312034855,1705566643364,-500.0,0.00021917,2]
[312034856,1705566643373,-662.85,0.00021917,2]
[312034857,1705566643383,-500.0,0.00021917,2]
[312034858,1705566643394,-500.0,0.00021917,2]
[312034859,1705566643404,-500.0,0.00021917,2]
[312034860,1705566643413,-500.0,0.00021917,2]
[312034861,1705566643422,-500.0,0.00021917,2]
[312034862,1705566643431,-500.0,0.00021917,2]
[312034863,1705566643441,-500.0,0.00021917,2]
[312034864,1705566643450,-500.0,0.00021917,2]
[312034865,1705566643459,-500.0,0.00021917,2]
[312034866,1705566643469,-500.0,0.00021917,2]
[312034867,1705566643478,-500.0,0.00021917,2]
[312034868,1705566643487,-500.0,0.00021917,2]
[312034869,1705566643496,-500.0,0.00021917,2]
[312034870,1705566643506,-646.44536867,0.00021917,2]
[312034871,1705566643517,-500.0,0.00021917,2]
[312034872,1705566643527,-500.0,0.00021917,2]
[312034873,1705566643536,-500.0,0.00021917,2]
[312034874,1705566643545,-500.0,0.00021917,2]
[312034875,1705566643554,-250.0,0.00021917,2]
[312034876,1705566643563,-500.0,0.00021917,2]
[312034877,1705566643572,-500.0,0.00021917,2]
[312034878,1705566643581,-500.0,0.00021917,2]
[312034879,1705566643591,-500.0,0.00021917,2]
[312034880,1705566643599,-503.42050531,0.00021917,2]
[312034881,1705566643608,-500.0,0.00021917,2]
[312034882,1705566643617,-500.0,0.00021917,2]
[312034883,1705566643626,-500.0,0.00021917,2]
[312034884,1705566643636,-295.74989579,0.00021917,2]
[312034885,1705566643646,-500.0,0.00021917,2]
[312034886,1705566643655,-500.0,0.00021917,2]
[312034887,1705566643664,-500.0,0.00021917,2]
[312034888,1705566643673,-500.0,0.00021917,2]
[312034889,1705566643682,-500.0,0.00021917,2]
[312034890,1705566643691,-500.0,0.00021917,2]
[312034891,1705566643700,-504.94720621,0.00021917,2]
[312034892,1705566643710,-504.91051734,0.00021917,2]
[312034893,1705566643719,-500.0,0.00021917,2]
[312034894,1705566643729,-500.0,0.00021917,2]
[312034895,1705566643738,-500.0,0.00021917,2]
[312034896,1705566643747,-530.43767122,0.00021917,2]
[312034897,1705566643758,-500.0,0.00021917,2]
[312034898,1705566643768,-500.0,0.00021917,2]
[312034899,1705566643778,-500.0,0.00021917,2]
[312034900,1705566643788,-500.0,0.00021917,2]
[312034901,1705566643798,-500.0,0.00021917,2]
[312034902,1705566643808,-500.0,0.00021917,2]
[312034903,1705566643817,-501.14105353,0.00021917,2]
[312034904,1705566643827,-500.0,0.00021917,2]
[312034905,1705566643836,-500.0,0.00021917,2]
[312034906,1705566643846,-500.0,0.00021917,2]
[312034907,1705566643855,-247.50847988,0.00021917,2]
[312034908,1705566643864,-500.0,0.00021917,2]
[312034909,1705566643874,-620.15,0.00021917,2]
[312034910,1705566643883,-500.0,0.00021917,2]
[312034911,1705566643892,-500.0,0.00021917,2]
[312034912,1705566643901,-500.0,0.00021917,2]
[312034913,1705566643910,-500.0,0.00021917,2]
[312034914,1705566643920,-500.0,0.00021917,2]
[312034915,1705566643929,-500.0,0.00021917,2]
[312034916,1705566643939,-515.86885816,0.00021917,2]
[312034917,1705566643948,-500.0,0.00021917,2]
[312034918,1705566643957,-500.0,0.00021917,2]
[312034919,1705566643966,-500.0,0.00021917,2]
[312034920,1705566643976,-335.27,0.00021917,2]
[312034921,1705566643985,-500.0,0.00021917,2]
[312034922,1705566643995,-511.58095958,0.00021917,2]
[312034923,1705566644005,-500.0,0.00021917,2]
[312034924,1705566644015,-500.0,0.00021917,2]
[312034925,1705566644024,-500.0,0.00021917,2]
[312034926,1705566644033,-502.53220674,0.00021917,2]
[312034927,1705566644042,-517.22886517,0.00021917,2]
[312034928,1705566644051,-505.17568394,0.00021917,2]
[312034929,1705566644061,-500.0,0.00021917,2]
[312034930,1705566644070,-500.0,0.00021917,2]
[312034931,1705566644079,-500.0,0.00021917,2]
[312034932,1705566644089,-521.63117228,0.00021917,2]
[312034933,1705566644098,-500.0,0.00021917,2]
[312034934,1705566644107,-507.79084714,0.00021917,2]
[312034935,1705566644116,-500.0,0.00021917,2]
[312034936,1705566644126,-500.0,0.00021917,2]
[312034937,1705566644135,-500.0,0.00021917,2]
[312034938,1705566644144,-500.0,0.00021917,2]
[312034939,1705566644154,-500.0,0.00021917,2]
[312034940,1705566644163,-500.0,0.00021917,2]
[312034941,1705566644172,-500.0,0.00021917,2]
[312034942,1705566644182,-500.0,0.00021917,2]
[312034943,1705566644191,-500.0,0.00021917,2]
[312034944,1705566644200,-525.86633324,0.00021917,2]
[312034945,1705566644209,-500.0,0.00021917,2]
[312034946,1705566644219,-548.85572097,0.00021917,2]
[312034947,1705566644228,-500.0,0.00021917,2]
[312034948,1705566644237,-500.0,0.00021917,2]
[312034949,1705566644247,-500.0,0.00021917,2]
[312034950,1705566644256,-500.0,0.00021917,2]
[312034951,1705566644265,-500.0,0.00021917,2]
[312034952,1705566644274,-500.0,0.00021917,2]
[312034953,1705566644283,-500.0,0.00021917,2]
[312034954,1705566644294,-544.32,0.00021917,2]
[312034955,1705566644304,-996.83,0.00021917,2]
[312034956,1705566644320,-500.0,0.00021917,2]
[312034957,1705566644330,-502.95704771,0.00021917,2]
[312034958,1705566644340,-500.0,0.00021917,2]
[312034959,1705566644349,-500.0,0.00021917,2]
[312034960,1705566644358,-262.0687998,0.00021917,2]
[312034961,1705566644368,-500.0,0.00021917,2]
[312034962,1705566644377,-500.0,0.00021917,2]
[312034963,1705566644386,-500.0,0.00021917,2]
[312034964,1705566644395,-500.0,0.00021917,2]
[312034965,1705566644405,-500.0,0.00021917,2]
[312034966,1705566644414,-500.0,0.00021917,2]
[312034967,1705566644423,-500.0,0.00021917,2]
[312034968,1705566644433,-793.27,0.00021917,2]
[312034969,1705566644442,-500.0,0.00021917,2]
[312034970,1705566644451,-500.0,0.00021917,2]
[312034971,1705566644460,-500.0,0.00021917,2]
[312034972,1705566644469,-500.0,0.00021917,2]
[312034973,1705566644535,-500.0,0.00021917,2]
[312034974,1705566644545,-500.0,0.00021917,2]
[312034975,1705566644555,-500.0,0.00021917,2]
[312034976,1705566644564,-500.0,0.00021917,2]
[312034977,1705566644573,-500.0,0.00021917,2]
[312034978,1705566644583,-500.0,0.00021917,2]
[312034979,1705566644592,-500.0,0.00021917,2]
[312034980,1705566644601,-500.0,0.00021917,2]
[312034981,1705566644611,-518.60494444,0.00021917,2]
[312034982,1705566644620,-500.0,0.00021917,2]
[312034983,1705566644629,-500.0,0.00021917,2]
[312034984,1705566644638,-500.0,0.00021917,2]
[312034985,1705566644648,-500.0,0.00021917,2]
[312034986,1705566644657,-549.52,0.00021917,2]
[312034987,1705566644666,-500.0,0.00021917,2]
[312034988,1705566644676,-500.0,0.00021917,2]
[312034989,1705566644686,-511.06706315,0.00021917,2]
[312034990,1705566644695,-209.49164246,0.00021917,2]
[312034991,1705566644704,-953.34,0.00021917,2]
[312034992,1705566644713,-965.74,0.00021917,2]
[312034993,1705566644723,-550.33,0.00021917,2]
[312034994,1705566644734,-500.0,0.00021917,2]
[312034995,1705566644743,-500.0,0.00021917,2]
[312034996,1705566644753,-500.0,0.00021917,2]
[312034997,1705566644763,-629.36,0.00021917,2]
[312034998,1705566644774,-500.0,0.00021917,2]
[312034999,1705566644783,-500.0,0.00021917,2]
[312035000,1705566644793,-500.0,0.00021917,2]
[312035001,1705566644804,-500.0,0.00021917,2]
[312035002,1705566644814,-500.0,0.00021917,2]
[312035003,1705566644824,-500.0,0.00021917,2]
[312035004,1705566644836,-500.0,0.00021917,2]
[312035005,1705566644846,-500.0,0.00021917,2]
[312035006,1705566644856,-500.0,0.00021917,2]
[312035007,1705566644865,-500.0,0.00021917,2]
[312035008,1705566644875,-546.97,0.00021917,2]
[312035009,1705566644885,-2323.65,0.00021917,2]
[312035010,1705566644894,-601.73084711,0.00021917,2]
[312035011,1705566644902,-500.0,0.00021917,2]
[312035012,1705566644913,-2065.13,0.00021917,2]
[312035013,1705566644922,-1117.71,0.00021917,2]
[312035014,1705566644932,-3429.98,0.00021917,2]
[312035015,1705566644942,-500.0,0.00021917,2]
[312035016,1705566644951,-540.13,0.00021917,2]
[312035017,1705566644960,-3004.23,0.00021917,2]
[312035018,1705566644969,-500.0,0.00021917,2]
[312035019,1705566644978,-500.0,0.00021917,2]
[312035020,1705566644987,-500.0,0.00021917,2]
[312035021,1705566644996,-826.18,0.00021917,2]
[312035022,1705566645007,-2309.08,0.00021917,2]
[312035023,1705566645017,-520.94997183,0.00021917,2]
[312035024,1705566645026,-500.0,0.00021917,2]
[312035025,1705566645036,-1822.8,0.00021917,2]
[312035026,1705566645045,-6179.91,0.00021917,2]
[312035027,1705566645053,-500.0,0.00021917,2]
[312035028,1705566645062,-500.0,0.00021917,2]
[312035029,1705566645071,-500.0,0.00021917,2]
[312035030,1705566645080,-500.0,0.00021917,2]
[312035031,1705566645090,-500.0,0.00021917,2]
[312035032,1705566645098,-1528.23,0.00021917,2]
[312035033,1705566645108,-500.0,0.00021917,2]
[312035034,1705566645117,-2264.01,0.00021917,2]
[312035035,1705566645126,-500.0,0.00021917,2]
[312035036,1705566645136,-507.63566537,0.00021917,2]
[312035037,1705566645145,-500.0,0.00021917,2]
[312035038,1705566645154,-559.98,0.00021917,2]
[312035039,1705566645163,-784.96,0.00021917,2]
[312035040,1705566645172,-725.32,0.00021917,2]
[312035041,1705566645181,-500.0,0.00021917,2]
[312035042,1705566645190,-500.0,0.00021917,2]
[312035043,1705566645199,-500.0,0.00021917,2]
[312035044,1705566645208,-500.0,0.00021917,2]
[312035045,1705566645217,-500.0,0.00021917,2]
[312035046,1705566645226,-500.0,0.00021917,2]
[312035047,1705566645235,-500.0,0.00021917,2]
[312035048,1705566645244,-2406.2,0.00021917,2]
[312035049,1705566645253,-643.96,0.00021917,2]
[312035050,1705566645262,-1249.27,0.00021917,2]
[312035051,1705566645271,-500.0,0.00021917,2]
[312035052,1705566645280,-500.0,0.00021917,2]
[312035053,1705566645290,-500.0,0.00021917,2]
[312035054,1705566645299,-513.3558162,0.00021917,2]
[312035055,1705566645312,-500.0,0.00021917,2]
[312035056,1705566645321,-2780.96,0.00021917,2]
[312035057,1705566645330,-500.0,0.00021917,2]
[312035058,1705566645339,-1080.3,0.00021917,2]
[312035059,1705566645348,-500.0,0.00021917,2]
[312035060,1705566645357,-785.88,0.00021917,2]
[312035061,1705566645367,-500.0,0.00021917,2]
[312035062,1705566645375,-500.0,0.00021917,2]
[312035063,1705566645387,-1943.35,0.00021917,2]
[312035064,1705566645396,-500.0,0.00021917,2]
[312035065,1705566645405,-500.0,0.00021917,2]
[312035066,1705566645414,-500.0,0.00021917,2]
[312035067,1705566645423,-500.0,0.00021917,2]
[312035068,1705566645433,-1413.48,0.00021917,2]
[312035069,1705566645442,-500.0,0.00021917,2]
[312035070,1705566645451,-500.0,0.00021917,2]
[312035071,1705566645460,-500.0,0.00021917,2]
[312035072,1705566645469,-608.92,0.00021917,2]
[312035073,1705566645478,-500.0,0.00021917,2]
[312035074,1705566645487,-500.0,0.00021917,2]
[312035075,1705566645496,-713.0,0.00021917,2]
[312035076,1705566645506,-12418.85,0.00021917,2]
[312035077,1705566645515,-500.0,0.00021917,2]
[312035078,1705566645525,-502.97436039,0.00021917,2]
[312035079,1705566645534,-500.0,0.00021917,2]
[312035080,1705566645543,-500.0,0.00021917,2]
[312035081,1705566645552,-500.0,0.00021917,2]
[312035082,1705566645561,-500.0,0.00021917,2]
[312035083,1705566645570,-1553.79,0.00021917,2]
[312035084,1705566645579,-500.0,0.00021917,2]
[312035085,1705566645589,-1112.33,0.00021917,2]
[312035086,1705566645598,-500.0,0.00021917,2]
[312035087,1705566645607,-883.94,0.00021917,2]
[312035088,1705566645616,-500.0,0.00021917,2]
[312035089,1705566645626,-500.0,0.00021917,2]
[312035090,1705566645635,-643.47,0.00021917,2]
[312035091,1705566645644,-500.0,0.00021917,2]
[312035092,1705566645653,-500.0,0.00021917,2]
[312035093,1705566645662,-500.0,0.00021917,2]
[312035094,1705566645671,-4445.23,0.00021917,2]
[312035095,1705566645680,-500.0,0.00021917,2]
[312035096,1705566645690,-500.0,0.00021917,2]
[312035097,1705566645699,-500.0,0.00021917,2]
[312035098,1705566645707,-500.0,0.00021917,2]
[312035099,1705566645716,-3242.75,0.00021917,2]
[312035100,1705566645725,-2842.37,0.00021917,2]
[312035101,1705566645734,-500.0,0.00021917,2]
[312035102,1705566645744,-500.0,0.00021917,2]
[312035103,1705566645753,-500.0,0.00021917,2]
[312035104,1705566645762,-1100.76,0.00021917,2]
[312035105,1705566645771,-500.0,0.00021917,2]
[312035106,1705566645780,-500.0,0.00021917,2]
[312035107,1705566645789,-545.46,0.00021917,2]
[312035108,1705566645799,-528.5132281,0.00021917,2]
[312035110,1705566645808,-620.85,0.00021917,2]
[312035113,1705566645821,-500.0,0.00021917,2]
[312035115,1705566645830,-683.78,0.00021917,2]
[312035116,1705566645841,-500.0,0.00021917,2]
[312035118,1705566645850,-1938.2,0.00021917,2]
[312035121,1705566645859,-500.0,0.00021917,2]
[312035123,1705566645868,-500.0,0.00021917,2]
[312035125,1705566645877,-858.27,0.00021917,2]
[312035126,1705566645888,-500.0,0.00021917,2]
[312035128,1705566645897,-500.0,0.00021917,2]
[312035130,1705566645906,-500.0,0.00021917,2]
[312035133,1705566645914,-500.0,0.00021917,2]
[312035135,1705566645924,-827.38,0.00021917,2]
[312035137,1705566645933,-303.86,0.00021917,2]
[312035139,1705566645943,-500.0,0.00021917,2]
[312035141,1705566645952,-1465.16,0.00021917,2]
[312035143,1705566645961,-500.0,0.00021917,2]
[312035145,1705566645970,-500.0,0.00021917,2]
[312035147,1705566645979,-500.0,0.00021917,2]
[312035149,1705566645988,-500.0,0.00021917,2]
[312035151,1705566645997,-633.75,0.00021917,2]
[312035153,1705566646007,-500.0,0.00021917,2]
[312035155,1705566646016,-1411.46,0.00021917,2]
[312035157,1705566646025,-500.0,0.00021917,2]
[312035159,1705566646036,-500.0,0.00021917,2]
[312035160,1705566646046,-500.0,0.00021917,2]
[312035161,1705566646056,-500.0,0.00021917,2]
[312035162,1705566646065,-491.53078467,0.00021917,2]
[312035163,1705566646074,-1459.75,0.00021917,2]
[312035164,1705566646083,-638.13,0.00021917,2]
[312035165,1705566646092,-500.0,0.00021917,2]
[312035166,1705566646101,-500.0,0.00021917,2]
[312035167,1705566646111,-500.10099102,0.00021917,2]
[312035168,1705566646120,-500.0,0.00021917,2]
[312035169,1705566646129,-554.97139485,0.00021917,2]
[312035170,1705566646139,-500.0,0.00021917,2]
[312035171,1705566646148,-500.0,0.00021917,2]
[312035172,1705566646157,-772.97,0.00021917,2]
[312035173,1705566646166,-500.0,0.00021917,2]
[312035174,1705566646175,-1285.02,0.00021917,2]
[312035175,1705566646185,-500.0,0.00021917,2]
[312035176,1705566646194,-500.0,0.00021917,2]
[312035177,1705566646203,-500.0,0.00021917,2]
[312035178,1705566646212,-500.0,0.00021917,2]
[312035179,1705566646223,-500.0,0.00021917,2]
[312035180,1705566646234,-500.0,0.00021917,2]
[312035181,1705566646244,-503.15274645,0.00021917,2]
[312035182,1705566646254,-500.0,0.00021917,2]
[312035183,1705566646263,-716.34,0.00021917,2]
[312035184,1705566646272,-500.0,0.00021917,2]
[312035185,1705566646281,-595.15037243,0.00021917,2]
[312035186,1705566646291,-730.75,0.00021917,2]
[312035187,1705566646302,-500.0,0.00021917,2]
[312035188,1705566646314,-500.0,0.00021917,2]
[312035189,1705566646324,-500.0,0.00021917,2]
[312035190,1705566646334,-500.0,0.00021917,2]
[312035191,1705566646346,-500.0,0.00021917,2]
[312035192,1705566646356,-500.0,0.00021917,2]
[312035193,1705566646365,-500.0,0.00021917,2]
[312035194,1705566646374,-500.0,0.00021917,2]
[312035195,1705566646384,-500.0,0.00021917,2]
[312035196,1705566646396,-500.0,0.00021917,2]
[312035197,1705566646407,-643.39,0.00021917,2]
[312035198,1705566646417,-939.84,0.00021917,2]
[312035199,1705566646427,-1656.84,0.00021917,2]
[312035200,1705566646436,-500.0,0.00021917,2]
[312035201,1705566646446,-8356.87,0.00021917,2]
[312035202,1705566646456,-500.0,0.00021917,2]
[312035203,1705566646465,-500.0,0.00021917,2]
[312035204,1705566646474,-500.0,0.00021917,2]
[312035205,1705566646483,-504.77312615,0.00021917,2]
[312035206,1705566646494,-500.0,0.00021917,2]
[312035207,1705566646511,-500.0,0.00021917,2]
[312035208,1705566646521,-500.0,0.00021917,2]
[312035209,1705566646529,-1030.6,0.00021917,2]
[312035210,1705566646539,-500.0,0.00021917,2]
[312035211,1705566646548,-736.85,0.00021917,2]
[312035212,1705566646558,-500.0,0.00021917,2]
[312035213,1705566646567,-4410.71,0.00021917,2]
[312035214,1705566646576,-500.0,0.00021917,2]
[312035215,1705566646586,-608.85,0.00021917,2]
[312035216,1705566646595,-500.0,0.00021917,2]
[312035217,1705566646605,-500.0,0.00021917,2]
[312035218,1705566646615,-500.0,0.00021917,2]
[312035219,1705566646624,-627.22,0.00021917,2]
[312035220,1705566646634,-500.0,0.00021917,2]
[312035221,1705566646643,-522.72,0.00021917,2]
[312035222,1705566646653,-507.64166401,0.00021917,2]
[312035223,1705566646662,-785.47,0.00021917,2]
[312035224,1705566646672,-500.0,0.00021917,2]
[312035225,1705566646682,-500.0,0.00021917,2]
[312035226,1705566646691,-500.0,0.00021917,2]
[312035227,1705566646700,-500.0,0.00021917,5]
[312035228,1705566646709,-500.0,0.00021917,2]
[312035229,1705566646718,-500.0,0.00021917,2]
[312035230,1705566646727,-500.0,0.00021917,2]
[312035231,1705566646736,-500.0,0.00021917,2]
[312035232,1705566646745,-664.83,0.00021917,2]
[312035233,1705566646756,-500.0,0.00021917,2]
[312035234,1705566646765,-500.0,0.00021917,2]
[312035235,1705566646774,-761.31,0.00021917,2]
[312035236,1705566646782,-500.0,0.00021917,2]
[312035237,1705566646791,-710.57,0.00021917,2]
[312035238,1705566646801,-500.0,0.00021917,2]
[312035239,1705566646811,-999.61,0.00021917,2]
[312035240,1705566646821,-500.0,0.00021917,2]
[312035241,1705566646831,-500.0,0.00021917,2]
[312035242,1705566646843,-500.0,0.00021917,2]
[312035243,1705566646852,-500.0,0.00021917,2]
[312035244,1705566646861,-500.0,0.00021917,2]
[312035245,1705566646871,-500.0,0.00021917,2]
[312035246,1705566646880,-1968.87,0.00021917,2]
[312035247,1705566646892,-500.0,0.00021917,2]
[312035248,1705566646902,-1221.43,0.00021917,2]
[312035249,1705566646911,-1397.21,0.00021917,2]
[312035250,1705566646921,-498.59930223,0.00021917,2]
[312035251,1705566646931,-500.0,0.00021917,2]
[312035252,1705566646940,-583.94,0.00021917,2]
[312035253,1705566646951,-500.0,0.00021917,2]
[312035254,1705566646960,-504.55858049,0.00021917,2]
[312035255,1705566646970,-500.0,0.00021917,2]
[312035256,1705566646979,-500.0,0.00021917,2]
[312035257,1705566646988,-829.24,0.00021917,2]
[312035258,1705566646997,-972.67,0.00021917,2]
[312035259,1705566647007,-1293.65,0.00021917,2]
[312035260,1705566647017,-500.0,0.00021917,2]
[312035261,1705566647026,-500.0,0.00021917,2]
[312035262,1705566647035,-500.0,0.00021917,2]
[312035263,1705566647045,-500.0,0.00021917,2]
[312035264,1705566647055,-512.32690201,0.00021917,2]
[312035265,1705566647064,-503.5,0.00021917,2]
[312035266,1705566647074,-500.0,0.00021917,2]
[312035267,1705566647085,-906.25,0.00021917,2]
[312035268,1705566647094,-1296.47,0.00021917,2]
[312035269,1705566647106,-500.0,0.00021917,2]
[312035270,1705566647115,-500.0,0.00021917,2]
[312035271,1705566647124,-500.0,0.00021917,2]
[312035272,1705566647133,-341.17244285,0.00021917,2]
[312035273,1705566647142,-500.0,0.00021917,2]